[Event "Titled Tuesday Blitz March 01 Late 2022"]
[White "Atanejhad, Sahebali"]
[Black "Batsiashvili, Nino"]
[WhiteFideId "12506664"]
[BlackFideId "13602993"]
[WhiteElo "1978"]
[BlackElo "2230"]
[Result "0-1"]
[Round "03"]
[TimeControl "180+1"]
[Date "2022.03.02"]
[WhiteClock "0:01:56"]
[BlackClock "0:02:12"]

1. d4 {[%clk 0:02:58]}  d5 {[%clk 0:02:59]} 2. c4 {[%clk 0:02:58]}  e6 {[%clk 0:02:59]} 3. Nc3 {[%clk 0:02:53]}  c5 {[%clk 0:02:58]} 4. cxd5 {[%clk 0:02:52]}  exd5 {[%clk 0:02:58]} 5. Nf3 {[%clk 0:02:52]}  Nc6 {[%clk 0:02:58]} 6. g3 {[%clk 0:02:52]}  Nf6 {[%clk 0:02:57]} 7. Bg2 {[%clk 0:02:52]}  cxd4 {[%clk 0:02:57]} 8. Nxd4 {[%clk 0:02:52]}  Bc5 {[%clk 0:02:57]} 9. Nxc6 {[%clk 0:02:52]}  bxc6 {[%clk 0:02:58]} 10. O-O {[%clk 0:02:52]}  O-O {[%clk 0:02:58]} 11. Qc2 {[%clk 0:02:52]}  Bb6 {[%clk 0:02:54]} 12. Rd1 {[%clk 0:02:50]}  Ng4 {[%clk 0:02:45]} 13. e3 {[%clk 0:02:49]}  Qf6 {[%clk 0:02:45]} 14. h3 {[%clk 0:02:48]}  Ne5 {[%clk 0:02:44]} 15. Qe2 {[%clk 0:02:41]}  Qh6 {[%clk 0:02:38]} 16. Kh2 {[%clk 0:02:39]}  Bg4 {[%clk 0:02:32]} 17. Qe1 {[%clk 0:02:06]}  Bxd1 {[%clk 0:02:30]} 18. Qxd1 {[%clk 0:02:07]}  Qf6 {[%clk 0:02:28]} 19. f4 {[%clk 0:02:06]}  Nc4 {[%clk 0:02:25]} 20. e4 {[%clk 0:02:06]}  dxe4 {[%clk 0:02:23]} 21. Nxe4 {[%clk 0:02:07]}  Qd4 {[%clk 0:02:23]} 22. Qc2 {[%clk 0:02:04]}  Rad8 {[%clk 0:02:15]} 23. Ng5 {[%clk 0:01:58]}  g6 {[%clk 0:02:14]} 24. Rb1 {[%clk 0:01:56]}  Qg1# {[%clk 0:02:12]} 0-1


[Site "https://www.chess.com"]

[Event "Titled Tuesday Blitz March 01 Late 2022"]
[White "Babazada, Khazar"]
[Black "Ezat, Mohamed"]
[WhiteFideId "13413554"]
[BlackFideId "10600906"]
[WhiteElo "2418"]
[BlackElo "2386"]
[Result "1-0"]
[Round "03"]
[TimeControl "180+1"]
[Date "2022.03.01"]
[WhiteClock "0:00:34"]
[BlackClock "0:00:10"]

1. e4 {[%clk 0:03:00]}  c6 {[%clk 0:02:59]} 2. d4 {[%clk 0:03:01]}  d5 {[%clk 0:02:59]} 3. Nc3 {[%clk 0:03:01]}  dxe4 {[%clk 0:02:59]} 4. Nxe4 {[%clk 0:03:02]}  Bf5 {[%clk 0:02:59]} 5. Ng3 {[%clk 0:03:03]}  Bg6 {[%clk 0:03:00]} 6. Nf3 {[%clk 0:03:03]}  e6 {[%clk 0:02:57]} 7. h4 {[%clk 0:03:04]}  h6 {[%clk 0:02:52]} 8. h5 {[%clk 0:03:03]}  Bh7 {[%clk 0:02:52]} 9. Bd3 {[%clk 0:03:04]}  Bxd3 {[%clk 0:02:52]} 10. Qxd3 {[%clk 0:03:05]}  Nf6 {[%clk 0:02:52]} 11. Bd2 {[%clk 0:03:03]}  Be7 {[%clk 0:02:51]} 12. O-O-O {[%clk 0:03:02]}  O-O {[%clk 0:02:52]} 13. Kb1 {[%clk 0:03:01]}  c5 {[%clk 0:02:52]} 14. Ne4 {[%clk 0:02:57]}  Nxe4 {[%clk 0:02:50]} 15. Qxe4 {[%clk 0:02:58]}  Nc6 {[%clk 0:02:45]} 16. dxc5 {[%clk 0:02:51]}  Qc7 {[%clk 0:02:37]} 17. g4 {[%clk 0:02:47]}  b6 {[%clk 0:02:28]} 18. g5 {[%clk 0:02:46]}  hxg5 {[%clk 0:02:25]} 19. h6 {[%clk 0:02:32]}  g6 {[%clk 0:02:13]} 20. h7+ {[%clk 0:02:33]}  Kh8 {[%clk 0:02:12]} 21. Bc3+ {[%clk 0:02:33]}  f6 {[%clk 0:02:13]} 22. Qxg6 {[%clk 0:02:32]}  e5 {[%clk 0:01:57]} 23. cxb6 {[%clk 0:01:58]}  axb6 {[%clk 0:01:56]} 24. Nh4 {[%clk 0:01:41]}  Bb4 {[%clk 0:01:49]} 25. Qh6 {[%clk 0:01:24]}  gxh4 {[%clk 0:01:46]} 26. Rdg1 {[%clk 0:01:24]}  Rf7 {[%clk 0:01:35]} 27. Rxh4 {[%clk 0:01:06]}  Rg7 {[%clk 0:00:45]} 28. Qxf6 {[%clk 0:00:46]}  Bxc3 {[%clk 0:00:41]} 29. Rhg4 {[%clk 0:00:45]}  Qf7 {[%clk 0:00:27]} 30. Qxg7+ {[%clk 0:00:43]}  Qxg7 {[%clk 0:00:27]} 31. Rxg7 {[%clk 0:00:44]}  Bd4 {[%clk 0:00:14]} 32. Rg8+ {[%clk 0:00:42]}  Kxh7 {[%clk 0:00:14]} 33. Rxa8 {[%clk 0:00:42]}  Bxf2 {[%clk 0:00:15]} 34. Rg2 {[%clk 0:00:42]}  Be3 {[%clk 0:00:14]} 35. Rag8 {[%clk 0:00:42]}  Nd4 {[%clk 0:00:13]} 36. R8g3 {[%clk 0:00:42]}  Bh6 {[%clk 0:00:12]} 37. Rh3 {[%clk 0:00:42]}  Nf5 {[%clk 0:00:13]} 38. Rh5 {[%clk 0:00:40]}  Ne3 {[%clk 0:00:11]} 39. Rgh2 {[%clk 0:00:41]}  Ng4 {[%clk 0:00:11]} 40. Rg2 {[%clk 0:00:35]}  Nf6 {[%clk 0:00:10]} 41. Rxe5 {[%clk 0:00:34]} 1-0


[Site "https://www.chess.com"]

[Event "Titled Tuesday Blitz March 01 Late 2022"]
[White "Baskin, Robert"]
[Black "Prohorov, Olexandr"]
[WhiteFideId "24662402"]
[BlackFideId "14105578"]
[WhiteElo "2488"]
[BlackElo "1993"]
[Result "1-0"]
[Round "03"]
[TimeControl "180+1"]
[Date "2022.03.02"]
[WhiteClock "0:01:10"]
[BlackClock "0:01:18"]

1. e4 {[%clk 0:02:59]}  c5 {[%clk 0:02:59]} 2. Nf3 {[%clk 0:02:59]}  e6 {[%clk 0:02:59]} 3. c3 {[%clk 0:03:00]}  Nf6 {[%clk 0:02:58]} 4. e5 {[%clk 0:02:59]}  Nd5 {[%clk 0:02:59]} 5. d4 {[%clk 0:03:00]}  cxd4 {[%clk 0:02:58]} 6. cxd4 {[%clk 0:03:00]}  d6 {[%clk 0:02:58]} 7. Bc4 {[%clk 0:02:59]}  Nb6 {[%clk 0:02:57]} 8. Bb3 {[%clk 0:02:45]}  Nc6 {[%clk 0:02:56]} 9. O-O {[%clk 0:02:44]}  dxe5 {[%clk 0:02:57]} 10. dxe5 {[%clk 0:02:44]}  Qxd1 {[%clk 0:02:54]} 11. Rxd1 {[%clk 0:02:45]}  Na5 {[%clk 0:02:53]} 12. Bc2 {[%clk 0:02:43]}  Be7 {[%clk 0:02:50]} 13. Nc3 {[%clk 0:02:43]}  Bd7 {[%clk 0:02:44]} 14. Ne4 {[%clk 0:02:37]}  Rc8 {[%clk 0:02:43]} 15. Bd3 {[%clk 0:02:23]}  O-O {[%clk 0:02:41]} 16. Bg5 {[%clk 0:02:22]}  Bxg5 {[%clk 0:02:38]} 17. Nfxg5 {[%clk 0:02:20]}  Nac4 {[%clk 0:02:34]} 18. Bxc4 {[%clk 0:02:07]}  Rxc4 {[%clk 0:02:29]} 19. Nd6 {[%clk 0:02:01]}  Rc2 {[%clk 0:02:19]} 20. Rac1 {[%clk 0:01:57]}  Rxc1 {[%clk 0:02:16]} 21. Rxc1 {[%clk 0:01:58]}  Bc6 {[%clk 0:02:16]} 22. b4 {[%clk 0:01:54]}  a6 {[%clk 0:02:14]} 23. Nge4 {[%clk 0:01:33]}  f5 {[%clk 0:02:05]} 24. exf6 {[%clk 0:01:31]}  gxf6 {[%clk 0:02:06]} 25. Rc3 {[%clk 0:01:31]}  Bxe4 {[%clk 0:01:43]} 26. Nxe4 {[%clk 0:01:30]}  f5 {[%clk 0:01:43]} 27. Ng5 {[%clk 0:01:18]}  Rd8 {[%clk 0:01:36]} 28. h4 {[%clk 0:01:18]}  e5 {[%clk 0:01:27]} 29. Rc7 {[%clk 0:01:13]}  Rd7 {[%clk 0:01:26]} 30. Rc5 {[%clk 0:01:10]}  e4 {[%clk 0:01:24]} 31. Rxf5 {[%clk 0:01:10]}  Rd1+ {[%clk 0:01:21]} 32. Kh2 {[%clk 0:01:10]}  Rd4 {[%clk 0:01:18]} 33. Ne6 {[%clk 0:01:10]} 1-0


[Site "https://www.chess.com"]

[Event "Titled Tuesday Blitz March 01 Late 2022"]
[White "Boyer, Mahel"]
[Black "Gracia Alvarez, Gerardo Antonio"]
[WhiteFideId "45102422"]
[BlackFideId "5109124"]
[WhiteElo "2328"]
[BlackElo "2139"]
[Result "1/2-1/2"]
[Round "03"]
[TimeControl "180+1"]
[Date "2022.03.02"]
[WhiteClock "0:00:03"]
[BlackClock "0:00:04"]

1. e4 {[%clk 0:02:45]}  c5 {[%clk 0:03:00]} 2. Nf3 {[%clk 0:01:36]}  Nc6 {[%clk 0:02:59]} 3. b3 {[%clk 0:01:33]}  g6 {[%clk 0:02:58]} 4. Bb2 {[%clk 0:01:33]}  Nf6 {[%clk 0:02:58]} 5. d4 {[%clk 0:01:23]}  cxd4 {[%clk 0:02:57]} 6. Nxd4 {[%clk 0:01:24]}  Bg7 {[%clk 0:02:55]} 7. Nxc6 {[%clk 0:01:21]}  bxc6 {[%clk 0:02:54]} 8. Bd3 {[%clk 0:01:20]}  O-O {[%clk 0:02:52]} 9. O-O {[%clk 0:01:20]}  d6 {[%clk 0:02:51]} 10. Nd2 {[%clk 0:01:09]}  a5 {[%clk 0:02:46]} 11. Nc4 {[%clk 0:01:05]}  a4 {[%clk 0:02:44]} 12. e5 {[%clk 0:01:03]}  Nd5 {[%clk 0:02:40]} 13. exd6 {[%clk 0:01:00]}  exd6 {[%clk 0:02:41]} 14. Bxg7 {[%clk 0:00:59]}  Kxg7 {[%clk 0:02:42]} 15. Be4 {[%clk 0:00:53]}  Be6 {[%clk 0:02:35]} 16. Bxd5 {[%clk 0:00:52]}  Bxd5 {[%clk 0:02:34]} 17. Qd4+ {[%clk 0:00:52]}  Qf6 {[%clk 0:02:12]} 18. Qxf6+ {[%clk 0:00:51]}  Kxf6 {[%clk 0:02:13]} 19. Nxd6 {[%clk 0:00:51]}  Rfd8 {[%clk 0:02:03]} 20. Nb7 {[%clk 0:00:50]}  Re8 {[%clk 0:01:54]} 21. c4 {[%clk 0:00:43]}  Be6 {[%clk 0:01:43]} 22. Nc5 {[%clk 0:00:42]}  axb3 {[%clk 0:01:42]} 23. axb3 {[%clk 0:00:42]}  Bf5 {[%clk 0:01:42]} 24. h3 {[%clk 0:00:38]}  h5 {[%clk 0:01:41]} 25. Rfd1 {[%clk 0:00:37]}  Ke5 {[%clk 0:01:22]} 26. Rxa8 {[%clk 0:00:10]}  Rxa8 {[%clk 0:01:22]} 27. Rd2 {[%clk 0:00:10]}  Ra5 {[%clk 0:01:08]} 28. b4 {[%clk 0:00:04]}  Ra1+ {[%clk 0:01:08]} 29. Kh2 {[%clk 0:00:04]}  Rb1 {[%clk 0:01:09]} 30. b5 {[%clk 0:00:01]}  cxb5 {[%clk 0:01:05]} 31. cxb5 {[%clk 0:00:02]}  Rxb5 {[%clk 0:01:03]} 32. Nd7+ {[%clk 0:00:02]}  Ke6 {[%clk 0:00:56]} 33. f4 {[%clk 0:00:03]}  Be4 {[%clk 0:00:47]} 34. Ne5 {[%clk 0:00:02]}  f6 {[%clk 0:00:41]} 35. Nc4 {[%clk 0:00:01]}  Rb4 {[%clk 0:00:34]} 36. Ne3 {[%clk 0:00:01]}  Bc6 {[%clk 0:00:28]} 37. Rf2 {[%clk 0:00:02]}  Re4 {[%clk 0:00:23]} 38. f5+ {[%clk 0:00:02]}  Ke7 {[%clk 0:00:20]} 39. Nf1 {[%clk 0:00:01]}  g5 {[%clk 0:00:20]} 40. Ng3 {[%clk 0:00:01]}  Rh4 {[%clk 0:00:19]} 41. Ne2 {[%clk 0:00:01]}  Re4 {[%clk 0:00:17]} 42. Ng3 {[%clk 0:00:01]}  Rh4 {[%clk 0:00:16]} 43. Re2+ {[%clk 0:00:02]}  Kf7 {[%clk 0:00:15]} 44. Re6 {[%clk 0:00:02]}  Bd7 {[%clk 0:00:13]} 45. Rd6 {[%clk 0:00:03]}  Ke7 {[%clk 0:00:12]} 46. Rb6 {[%clk 0:00:03]}  Rf4 {[%clk 0:00:12]} 47. Nxh5 {[%clk 0:00:03]}  Rxf5 {[%clk 0:00:13]} 48. Ng3 {[%clk 0:00:03]}  Re5 {[%clk 0:00:12]} 49. Rb7 {[%clk 0:00:02]}  f5 {[%clk 0:00:11]} 50. Rb4 {[%clk 0:00:02]}  Bc6 {[%clk 0:00:08]} 51. Kg1 {[%clk 0:00:02]}  f4 {[%clk 0:00:09]} 52. Nh1 {[%clk 0:00:02]}  Re1+ {[%clk 0:00:09]} 53. Kh2 {[%clk 0:00:03]}  Re2 {[%clk 0:00:09]} 54. Kg1 {[%clk 0:00:01]}  Rxg2+ {[%clk 0:00:09]} 55. Kf1 {[%clk 0:00:02]}  Rc2 {[%clk 0:00:09]} 56. Nf2 {[%clk 0:00:03]}  Rc1+ {[%clk 0:00:08]} 57. Ke2 {[%clk 0:00:03]}  Rc2+ {[%clk 0:00:08]} 58. Ke1 {[%clk 0:00:04]}  Kf6 {[%clk 0:00:07]} 59. h4 {[%clk 0:00:04]}  gxh4 {[%clk 0:00:04]} 60. Rxf4+ {[%clk 0:00:04]}  Kg5 {[%clk 0:00:04]} 61. Rg4+ {[%clk 0:00:05]}  Kh5 {[%clk 0:00:05]} 62. Rg7 {[%clk 0:00:05]}  Rc1+ {[%clk 0:00:04]} 63. Ke2 {[%clk 0:00:05]}  Rc2+ {[%clk 0:00:05]} 64. Ke3 {[%clk 0:00:05]}  Rc3+ {[%clk 0:00:04]} 65. Kf4 {[%clk 0:00:06]}  Rf3+ {[%clk 0:00:04]} 66. Ke5 {[%clk 0:00:07]}  Rxf2 {[%clk 0:00:04]} 67. Rc7 {[%clk 0:00:07]}  Bg2 {[%clk 0:00:03]} 68. Rg7 {[%clk 0:00:06]}  h3 {[%clk 0:00:03]} 69. Kd4 {[%clk 0:00:06]}  Kh4 {[%clk 0:00:03]} 70. Ke3 {[%clk 0:00:06]}  Rf3+ {[%clk 0:00:04]} 71. Ke2 {[%clk 0:00:05]}  Rf5 {[%clk 0:00:04]} 72. Ke3 {[%clk 0:00:04]}  Rh5 {[%clk 0:00:03]} 73. Kf4 {[%clk 0:00:04]}  h2 {[%clk 0:00:03]} 74. Rg4+ {[%clk 0:00:04]}  Kh3 {[%clk 0:00:03]} 75. Rg3+ {[%clk 0:00:05]}  Kh4 {[%clk 0:00:04]} 76. Rg4+ {[%clk 0:00:02]}  Kh3 {[%clk 0:00:04]} 77. Rg3+ {[%clk 0:00:03]}  Kh4 {[%clk 0:00:04]} 78. Rg4+ {[%clk 0:00:03]} 1/2-1/2


[Site "https://www.chess.com"]

[Event "Titled Tuesday Blitz March 01 Late 2022"]
[White "Bryakin, Mikhail"]
[Black "Silva, Kaua Marques"]
[WhiteFideId "4165314"]
[BlackFideId "22701168"]
[WhiteElo "2421"]
[BlackElo "2013"]
[Result "1-0"]
[Round "03"]
[TimeControl "180+1"]
[Date "2022.03.02"]
[WhiteClock "0:02:07"]
[BlackClock "0:02:10"]

1. e4 {[%clk 0:03:00]}  c5 {[%clk 0:03:00]} 2. c3 {[%clk 0:02:59]}  Nf6 {[%clk 0:02:59]} 3. e5 {[%clk 0:02:58]}  Nd5 {[%clk 0:03:00]} 4. d4 {[%clk 0:02:58]}  cxd4 {[%clk 0:03:00]} 5. cxd4 {[%clk 0:02:59]}  d6 {[%clk 0:02:59]} 6. Nf3 {[%clk 0:02:58]}  Nc6 {[%clk 0:02:59]} 7. Nc3 {[%clk 0:02:57]}  Nxc3 {[%clk 0:02:59]} 8. bxc3 {[%clk 0:02:58]}  dxe5 {[%clk 0:02:59]} 9. d5 {[%clk 0:02:56]}  Na5 {[%clk 0:02:54]} 10. Nxe5 {[%clk 0:02:53]}  Qc7 {[%clk 0:02:24]} 11. Bb5+ {[%clk 0:02:28]}  Bd7 {[%clk 0:02:24]} 12. Bxd7+ {[%clk 0:02:21]}  Kd8 {[%clk 0:02:24]} 13. Nxf7+ {[%clk 0:02:22]}  Kxd7 {[%clk 0:02:24]} 14. Qa4+ {[%clk 0:02:17]}  b5 {[%clk 0:02:12]} 15. Qxb5+ {[%clk 0:02:12]}  Kc8 {[%clk 0:02:12]} 16. Qe8+ {[%clk 0:02:07]}  Kb7 {[%clk 0:02:12]} 17. Rb1+ {[%clk 0:02:07]}  Ka6 {[%clk 0:02:10]} 18. Qb5# {[%clk 0:02:07]} 1-0


[Site "https://www.chess.com"]

[Event "Titled Tuesday Blitz March 01 Late 2022"]
[White "Christie, Joshua"]
[Black "Makarian, Rudik"]
[WhiteFideId "7402074"]
[BlackFideId "44105681"]
[WhiteElo "2078"]
[BlackElo "2486"]
[Result "1-0"]
[Round "03"]
[TimeControl "180+1"]
[Date "2022.03.01"]
[WhiteClock "0:00:20"]
[BlackClock "0:00:03"]

1. c4 {[%clk 0:03:00]}  Nf6 {[%clk 0:03:00]} 2. Nc3 {[%clk 0:03:00]}  e6 {[%clk 0:03:01]} 3. d4 {[%clk 0:02:59]}  d5 {[%clk 0:03:01]} 4. cxd5 {[%clk 0:02:59]}  exd5 {[%clk 0:03:02]} 5. Bg5 {[%clk 0:02:59]}  c6 {[%clk 0:03:02]} 6. e3 {[%clk 0:02:59]}  h6 {[%clk 0:03:03]} 7. Bh4 {[%clk 0:02:59]}  Bd6 {[%clk 0:03:02]} 8. Qc2 {[%clk 0:02:59]}  O-O {[%clk 0:03:02]} 9. Bd3 {[%clk 0:02:59]}  Re8 {[%clk 0:03:03]} 10. Nge2 {[%clk 0:02:59]}  Be6 {[%clk 0:03:01]} 11. h3 {[%clk 0:02:58]}  Nbd7 {[%clk 0:03:01]} 12. O-O {[%clk 0:02:59]}  a5 {[%clk 0:03:01]} 13. f3 {[%clk 0:02:51]}  c5 {[%clk 0:02:51]} 14. Rae1 {[%clk 0:02:28]}  c4 {[%clk 0:02:40]} 15. Bf5 {[%clk 0:02:25]}  Bb4 {[%clk 0:01:33]} 16. Bxe6 {[%clk 0:02:14]}  Rxe6 {[%clk 0:01:34]} 17. e4 {[%clk 0:01:53]}  Qb6 {[%clk 0:01:24]} 18. Bf2 {[%clk 0:01:06]}  Qc6 {[%clk 0:01:04]} 19. e5 {[%clk 0:01:03]}  Nh7 {[%clk 0:01:04]} 20. f4 {[%clk 0:01:03]}  g6 {[%clk 0:00:53]} 21. f5 {[%clk 0:01:01]}  gxf5 {[%clk 0:00:52]} 22. Nf4 {[%clk 0:00:55]}  Bxc3 {[%clk 0:00:42]} 23. bxc3 {[%clk 0:00:55]}  Ndf8 {[%clk 0:00:32]} 24. Qxf5 {[%clk 0:00:50]}  Rg6 {[%clk 0:00:17]} 25. Nxg6 {[%clk 0:00:45]}  fxg6 {[%clk 0:00:18]} 26. Qf4 {[%clk 0:00:41]}  g5 {[%clk 0:00:15]} 27. Qf5 {[%clk 0:00:41]}  Qe6 {[%clk 0:00:16]} 28. Qxe6+ {[%clk 0:00:37]}  Nxe6 {[%clk 0:00:16]} 29. Rb1 {[%clk 0:00:37]}  Rb8 {[%clk 0:00:14]} 30. Rb6 {[%clk 0:00:37]}  Nf4 {[%clk 0:00:12]} 31. Re1 {[%clk 0:00:25]}  Nf8 {[%clk 0:00:12]} 32. Be3 {[%clk 0:00:24]}  Nd3 {[%clk 0:00:10]} 33. Reb1 {[%clk 0:00:23]}  Re8 {[%clk 0:00:06]} 34. Rxh6 {[%clk 0:00:22]}  Re7 {[%clk 0:00:06]} 35. Rhb6 {[%clk 0:00:21]}  Ne6 {[%clk 0:00:05]} 36. Rxb7 {[%clk 0:00:22]}  Nc7 {[%clk 0:00:05]} 37. R1b6 {[%clk 0:00:20]}  Kf7 {[%clk 0:00:05]} 38. Rc6 {[%clk 0:00:21]}  Ne6 {[%clk 0:00:04]} 39. Rxe7+ {[%clk 0:00:21]}  Kxe7 {[%clk 0:00:05]} 40. Ra6 {[%clk 0:00:21]}  Nb2 {[%clk 0:00:04]} 41. Ra7+ {[%clk 0:00:21]}  Ke8 {[%clk 0:00:05]} 42. Rxa5 {[%clk 0:00:22]}  Nd1 {[%clk 0:00:05]} 43. Bd2 {[%clk 0:00:22]}  Nf4 {[%clk 0:00:05]} 44. Rxd5 {[%clk 0:00:22]}  Nxd5 {[%clk 0:00:05]} 45. Kf1 {[%clk 0:00:20]}  N1xc3 {[%clk 0:00:05]} 46. Bxg5 {[%clk 0:00:18]}  Nb5 {[%clk 0:00:05]} 47. h4 {[%clk 0:00:17]}  Nxd4 {[%clk 0:00:05]} 48. h5 {[%clk 0:00:18]}  Kf7 {[%clk 0:00:05]} 49. h6 {[%clk 0:00:17]}  Kg6 {[%clk 0:00:05]} 50. Bc1 {[%clk 0:00:18]}  c3 {[%clk 0:00:05]} 51. a4 {[%clk 0:00:17]}  Nb4 {[%clk 0:00:05]} 52. a5 {[%clk 0:00:15]}  Nd3 {[%clk 0:00:05]} 53. Be3 {[%clk 0:00:16]}  c2 {[%clk 0:00:04]} 54. a6 {[%clk 0:00:15]}  Nc6 {[%clk 0:00:04]} 55. Ke2 {[%clk 0:00:14]}  c1=Q {[%clk 0:00:03]} 56. Bxc1 {[%clk 0:00:14]}  Nxc1+ {[%clk 0:00:04]} 57. Ke3 {[%clk 0:00:15]}  Kxh6 {[%clk 0:00:04]} 58. Ke4 {[%clk 0:00:16]}  Nb3 {[%clk 0:00:03]} 59. Kd5 {[%clk 0:00:17]}  Ne7+ {[%clk 0:00:02]} 60. Ke6 {[%clk 0:00:17]}  Nc8 {[%clk 0:00:02]} 61. Kd7 {[%clk 0:00:17]}  Nb6+ {[%clk 0:00:02]} 62. Kc6 {[%clk 0:00:17]}  Nc8 {[%clk 0:00:02]} 63. Kc7 {[%clk 0:00:18]}  Nc5 {[%clk 0:00:02]} 64. Kxc8 {[%clk 0:00:17]}  Nxa6 {[%clk 0:00:02]} 65. e6 {[%clk 0:00:18]}  Nb4 {[%clk 0:00:01]} 66. e7 {[%clk 0:00:18]}  Nd5 {[%clk 0:00:02]} 67. e8=Q {[%clk 0:00:18]}  Nb6+ {[%clk 0:00:03]} 68. Kb7 {[%clk 0:00:18]}  Nc4 {[%clk 0:00:02]} 69. Qf8+ {[%clk 0:00:19]}  Kg6 {[%clk 0:00:03]} 70. Qc5 {[%clk 0:00:20]}  Nd2 {[%clk 0:00:02]} 71. Qe3 {[%clk 0:00:20]}  Nc4 {[%clk 0:00:03]} 72. Qe4+ {[%clk 0:00:20]} 1-0


[Site "https://www.chess.com"]

[Event "Titled Tuesday Blitz March 01 Late 2022"]
[White "Corrales Jimenez, Fidel"]
[Black "Goltsev, Dmitry"]
[WhiteFideId "3506690"]
[BlackFideId "24176710"]
[WhiteElo "2541"]
[BlackElo "2273"]
[Result "1-0"]
[Round "03"]
[TimeControl "180+1"]
[Date "2022.03.01"]
[WhiteClock "0:01:13"]
[BlackClock "0:00:39"]

1. e4 {[%clk 0:03:00]}  e6 {[%clk 0:02:59]} 2. d4 {[%clk 0:03:00]}  d5 {[%clk 0:03:00]} 3. e5 {[%clk 0:03:01]}  c5 {[%clk 0:02:58]} 4. c3 {[%clk 0:03:01]}  Nc6 {[%clk 0:02:59]} 5. Nf3 {[%clk 0:03:01]}  Nge7 {[%clk 0:03:00]} 6. Bd3 {[%clk 0:02:59]}  Nf5 {[%clk 0:03:00]} 7. Bxf5 {[%clk 0:02:59]}  exf5 {[%clk 0:03:01]} 8. dxc5 {[%clk 0:02:59]}  Bxc5 {[%clk 0:03:01]} 9. O-O {[%clk 0:02:59]}  a5 {[%clk 0:03:00]} 10. Na3 {[%clk 0:02:56]}  h6 {[%clk 0:02:57]} 11. Nb5 {[%clk 0:02:55]}  Be6 {[%clk 0:02:57]} 12. Qe2 {[%clk 0:02:50]}  Qb6 {[%clk 0:02:55]} 13. a4 {[%clk 0:02:49]}  O-O {[%clk 0:02:54]} 14. Rd1 {[%clk 0:02:49]}  Rad8 {[%clk 0:02:53]} 15. h4 {[%clk 0:02:46]}  Rfe8 {[%clk 0:02:53]} 16. Nfd4 {[%clk 0:02:34]}  Bc8 {[%clk 0:02:44]} 17. Bf4 {[%clk 0:02:29]}  f6 {[%clk 0:02:41]} 18. e6 {[%clk 0:02:10]}  Re7 {[%clk 0:02:28]} 19. Nxf5 {[%clk 0:02:08]}  Rxe6 {[%clk 0:02:28]} 20. Qg4 {[%clk 0:02:08]}  Bxf2+ {[%clk 0:02:28]} 21. Kf1 {[%clk 0:02:01]}  g5 {[%clk 0:02:15]} 22. hxg5 {[%clk 0:02:01]}  fxg5 {[%clk 0:02:09]} 23. Nxh6+ {[%clk 0:01:57]}  Rxh6 {[%clk 0:02:06]} 24. Qxg5+ {[%clk 0:01:57]}  Kf7 {[%clk 0:02:01]} 25. Qxh6 {[%clk 0:01:55]}  Bg4 {[%clk 0:01:50]} 26. Qh7+ {[%clk 0:01:49]}  Kf6 {[%clk 0:01:46]} 27. Qh6+ {[%clk 0:01:40]}  Kf7 {[%clk 0:01:45]} 28. Bg5 {[%clk 0:01:28]}  Ne5 {[%clk 0:00:45]} 29. Qxb6 {[%clk 0:01:15]}  Bxb6 {[%clk 0:00:45]} 30. Bxd8 {[%clk 0:01:15]}  Bxd8 {[%clk 0:00:43]} 31. Rxd5 {[%clk 0:01:15]}  Nc6 {[%clk 0:00:39]} 32. Rxd8 {[%clk 0:01:13]} 1-0


[Site "https://www.chess.com"]

[Event "Titled Tuesday Blitz March 01 Late 2022"]
[White "Csonka, Balazs"]
[Black "Koutlas, Nikolaos"]
[WhiteFideId "742910"]
[BlackFideId "25827138"]
[WhiteElo "2404"]
[BlackElo "1610"]
[Result "0-1"]
[Round "03"]
[TimeControl "180+1"]
[Date "2022.03.02"]
[WhiteClock "0:00:17"]
[BlackClock "0:00:10"]

1. d4 {[%clk 0:03:00]}  Nf6 {[%clk 0:03:00]} 2. Nf3 {[%clk 0:03:00]}  c5 {[%clk 0:02:58]} 3. d5 {[%clk 0:02:59]}  e6 {[%clk 0:02:58]} 4. Nc3 {[%clk 0:02:58]}  exd5 {[%clk 0:02:55]} 5. Nxd5 {[%clk 0:02:59]}  Nxd5 {[%clk 0:02:51]} 6. Qxd5 {[%clk 0:03:00]}  Nc6 {[%clk 0:02:50]} 7. e4 {[%clk 0:02:55]}  Be7 {[%clk 0:02:49]} 8. Bc4 {[%clk 0:02:41]}  O-O {[%clk 0:02:48]} 9. O-O {[%clk 0:02:39]}  d6 {[%clk 0:02:47]} 10. c3 {[%clk 0:02:15]}  Na5 {[%clk 0:01:49]} 11. Be2 {[%clk 0:02:13]}  Be6 {[%clk 0:01:49]} 12. Qd3 {[%clk 0:02:06]}  Re8 {[%clk 0:01:38]} 13. Rd1 {[%clk 0:02:02]}  Qb6 {[%clk 0:01:33]} 14. Qc2 {[%clk 0:01:52]}  Rad8 {[%clk 0:01:31]} 15. Ng5 {[%clk 0:01:36]}  Bxg5 {[%clk 0:00:29]} 16. Bxg5 {[%clk 0:01:36]}  f6 {[%clk 0:00:28]} 17. Be3 {[%clk 0:01:35]}  Nc4 {[%clk 0:00:27]} 18. Bc1 {[%clk 0:01:29]}  Ne5 {[%clk 0:00:17]} 19. c4 {[%clk 0:01:13]}  Rf8 {[%clk 0:00:14]} 20. Be3 {[%clk 0:00:53]}  f5 {[%clk 0:00:12]} 21. exf5 {[%clk 0:00:54]}  Bxf5 {[%clk 0:00:13]} 22. Qc3 {[%clk 0:00:52]}  Qc6 {[%clk 0:00:13]} 23. f3 {[%clk 0:00:33]}  Rde8 {[%clk 0:00:12]} 24. Rd2 {[%clk 0:00:33]}  Re6 {[%clk 0:00:11]} 25. Rad1 {[%clk 0:00:31]}  Rfe8 {[%clk 0:00:11]} 26. Bf4 {[%clk 0:00:28]}  Ng6 {[%clk 0:00:11]} 27. Rxd6 {[%clk 0:00:27]}  Nxf4 {[%clk 0:00:11]} 28. Rxc6 {[%clk 0:00:17]}  Nxe2+ {[%clk 0:00:11]} 29. Kf1 {[%clk 0:00:17]}  Nxc3 {[%clk 0:00:11]} 30. Rxe6 {[%clk 0:00:17]}  Bxe6 {[%clk 0:00:09]} 31. bxc3 {[%clk 0:00:17]}  Bxc4+ {[%clk 0:00:10]} 32. Kg1 {[%clk 0:00:18]}  Bxa2 {[%clk 0:00:10]} 33. Ra1 {[%clk 0:00:18]}  Re2 {[%clk 0:00:10]} 34. Kf1 {[%clk 0:00:17]}  Rb2 {[%clk 0:00:10]} 0-1


[Site "https://www.chess.com"]